bitfinex-derivatives/quotes_SOLF0:USTF0_20250331
["timestamp","ask_amount","ask_price","bid_price","bid_amount"]
[1743451468556,7.981,125.32,125.31,0.05345683]
[1743451470463,7.981,125.32,125.31,5.683e-05]
[1743451471963,37.601,125.32,125.31,5.683e-05]
[1743451474358,7.981,125.32,125.31,5.683e-05]
[1743451474963,7.9806,125.33,125.31,5.683e-05]
[1743451475163,29.6730202,125.34,125.31,5.683e-05]
[1743451475363,7.981,125.32,125.31,5.683e-05]
[1743451476766,7.9807,125.33,125.31,5.683e-05]
[1743451477466,0.0530202,125.34,125.31,4.66495683]
[1743451477670,29.62,125.37,125.31,4.66495683]
[1743451478560,7.9806,125.33,125.31,4.66495683]
[1743451478963,8.0315816,125.33,125.31,4.66495683]
[1743451479670,7.981,125.32,125.31,4.66495683]
[1743451479869,7.981,125.32,125.31,5.683e-05]
[1743451498795,7.9854,125.25,125.24,5.0381]
[1743451500292,29.65145425,125.26,125.23,0.05358436]
[1743451500885,7.9861,125.24,125.23,0.05358436]
[1743451501291,7.9861,125.24,125.23,8.436e-05]
[1743451505191,21.88256133,125.25,125.16,2.5262]
[1743451505394,21.88256133,125.21,125.15,88.40078384]
[1743451505597,7.9896,125.19,125.15,96.39248384]
[1743451505897,7.9896,125.19,125.14,5.0274]
[1743451506396,0.05792676,125.18,125.16,7.9907]
[1743451506597,0.05792676,125.18,125.15,0.06081263]
[1743451506897,0.05792676,125.18,125.17,7.9905]
[1743451510600,29.62,125.22,125.17,21.88256133]
[1743451511201,29.62,125.22,125.2,7.9883]
[1743451511598,29.67156935,125.22,125.2,8.04190316]
[1743451511801,37.65916935,125.22,125.2,8.04190316]
[1743451512195,0.05156935,125.22,125.2,0.05360316]
[1743451513299,0.05156935,125.22,125.21,7.988]
[1743451514902,0.05156935,125.22,125.2,8.04190316]
[1743451515402,0.05156935,125.22,125.21,7.988]
[1743451515793,0.05156935,125.22,125.2,0.05360316]
[1743451516097,0.05156935,125.22,125.21,7.988]
[1743451518106,37.6064,125.24,125.22,7.9871]
[1743451518604,37.6064,125.24,125.21,7.9876]
[1743451518795,7.9867,125.23,125.21,7.9876]
[1743451519097,8.0428935,125.23,125.21,7.9876]
[1743451519796,7.9874,125.22,125.2,8.04180316]
[1743451519997,0.0561935,125.23,125.2,0.05360316]
[1743451521107,8.0431935,125.23,125.2,8.04160316]
[1743451521301,0.0561935,125.23,125.2,8.04160316]
[1743451521701,7.9876,125.22,125.2,8.04160316]
[1743451521910,0.0561935,125.23,125.2,0.05360316]
[1743451523706,7.988,125.21,125.2,0.05360316]
[1743451525308,7.9874,125.22,125.2,8.04220316]
[1743451525509,0.0561935,125.23,125.2,0.05360316]
[1743451526904,7.9874,125.22,125.2,8.04190316]
[1743451527807,0.0561935,125.23,125.2,0.05360316]
[1743451529798,21.93875483,125.23,125.2,0.05360316]
[1743451530302,7.988,125.21,125.2,0.05360316]
[1743451530504,37.608,125.21,125.2,0.05360316]
[1743451532210,7.9903,125.18,125.15,21.88256133]
[1743451532709,7.9903,125.18,125.16,7.9912]
[1743451533510,8.04267086,125.18,125.16,8.05154812]
[1743451534914,7.9905,125.17,125.16,0.06034812]
[1743451536913,8.04257086,125.18,125.16,8.05134812]
[1743451537507,8.04257086,125.18,125.16,0.06034812]
[1743451538112,7.9905,125.17,125.16,0.06034812]
[1743451543414,0.05237086,125.18,125.16,0.06034812]
[1743451543715,0.05237086,125.18,125.17,14.03534231]
[1743451544013,8.04227086,125.18,125.17,14.03534231]
[1743451546510,0.05237086,125.18,125.17,22.02584231]
[1743451547316,0.05237086,125.18,125.17,14.03534231]
[1743451547821,8.04227086,125.18,125.17,14.03534231]
[1743451548316,0.05237086,125.18,125.17,14.03534231]
[1743451550621,8.04227086,125.18,125.17,14.03534231]
[1743451550825,0.05237086,125.18,125.17,22.02584231]
[1743451551422,0.05237086,125.18,125.17,14.03534231]
[1743451552322,0.05237086,125.18,125.17,22.02584231]
[1743451554326,29.62,125.21,125.2,7.9882]
[1743451554521,7.9877,125.22,125.2,22.02354231]
[1743451555427,8.03927228,125.22,125.2,22.08277928]
[1743451556127,8.03927228,125.22,125.2,14.09457928]
[1743451557333,0.05157228,125.22,125.2,14.09457928]
[1743451557534,0.05157228,125.22,125.21,7.988]
[1743451557725,0.05157228,125.22,125.21,22.02334231]
[1743451557930,8.03887228,125.22,125.21,14.03534231]
[1743451558131,0.05157228,125.22,125.2,0.05923697]
[1743451558531,8.03927228,125.22,125.2,8.04783697]
[1743451559237,0.05157228,125.22,125.21,7.988]
[1743451559838,8.03887228,125.22,125.2,22.08277928]
[1743451560342,8.03887228,125.22,125.2,14.09457928]
[1743451560733,8.03887228,125.22,125.2,22.08287928]
[1743451563744,0.05157228,125.22,125.21,7.988]
[1743451564440,15.9673,125.28,125.21,14.03534231]
[1743451564745,43.63534231,125.27,125.22,14.03534231]
[1743451564935,7.9863,125.24,125.22,22.02224231]
[1743451565135,43.63534231,125.27,125.22,14.03534231]
[1743451565341,7.9862,125.24,125.22,14.03534231]
[1743451565543,7.9862,125.24,125.23,0.05712079]
[1743451565738,43.63534231,125.27,125.23,0.05712079]
[1743451565938,7.9857,125.25,125.23,0.05712079]
[1743451566140,7.9857,125.25,125.23,8.04382079]
[1743451566341,43.63534231,125.27,125.23,0.05712079]
[1743451566646,7.9858,125.25,125.23,8.04372079]
[1743451567645,43.63534231,125.27,125.23,0.05712079]
[1743451568946,7.9857,125.25,125.23,8.04372079]
[1743451569154,29.6,125.24,125.23,0.05712079]
[1743451569446,43.63534231,125.24,125.16,7.9908]
[1743451569646,14.03534231,125.2,125.14,107.50232615]
[1743451569954,14.03534231,125.18,125.14,107.50232615]
[1743451570146,43.63534231,125.18,125.14,107.50232615]
[1743451570350,51.62554231,125.18,125.15,7.9914]
[1743451570649,0.05701752,125.17,125.15,0.06082501]
[1743451571648,0.05701752,125.17,125.15,8.05232501]
[1743451571951,8.04751752,125.17,125.15,14.09616732]
[1743451572255,8.04751752,125.17,125.15,0.06082501]
[1743451573147,0.05701752,125.17,125.15,8.05262501]
[1743451574038,8.04761752,125.17,125.15,8.05262501]
[1743451574745,8.04761752,125.17,125.15,0.06082501]
[1743451577449,8.04761752,125.17,125.16,14.03534231]
[1743451577450,0.05701752,125.17,125.16,14.03534231]
[1743451577648,29.6,125.21,125.16,14.03534231]
[1743451577844,29.6,125.21,125.18,14.03534231]
[1743451578050,7.9889,125.2,125.18,14.03534231]
[1743451578755,7.9889,125.2,125.18,22.07676304]
[1743451579355,29.6,125.23,125.19,7.9888]
[1743451579551,14.03534231,125.26,125.21,14.03534231]
[1743451579755,7.9864,125.24,125.22,14.03534231]
[1743451579955,7.9864,125.24,125.22,14.08985224]
[1743451581049,7.9867,125.23,125.22,0.05450993]
[1743451583256,22.02204231,125.23,125.22,0.05450993]
[1743451583953,7.9892,125.19,125.17,14.03534231]
[1743451584358,7.9892,125.19,125.17,22.02584231]
[1743451584957,8.04470192,125.19,125.17,22.07861575]
[1743451585761,0.05550192,125.19,125.18,22.02524231]
[1743451586352,0.05550192,125.19,125.18,14.03534231]
[1743451588366,0.05550192,125.19,125.18,22.02524231]
[1743451592567,29.6,125.23,125.21,7.9879]
[1743451593567,29.6,125.23,125.22,7.9873]
[1743451593766,29.6,125.26,125.22,14.03534231]
[1743451594271,37.5851,125.26,125.23,8.04466818]
[1743451594464,7.9851,125.26,125.23,8.04466818]
[1743451594665,37.5851,125.26,125.24,7.986]
[1743451594965,37.5851,125.26,125.23,0.05836818]
[1743451595272,37.5851,125.26,125.24,7.9857]
[1743451597170,37.5851,125.26,125.23,8.04486818]
[1743451598967,37.5851,125.26,125.23,0.05836818]
[1743451598968,7.9854,125.25,125.23,0.05836818]
[1743451600166,7.9854,125.25,125.23,8.04496818]
[1743451600569,7.9854,125.25,125.23,0.05836818]
[1743451600770,7.9854,125.25,125.23,8.04506818]
[1743451601268,29.6,125.26,125.23,0.05836818]
[1743451601973,7.9857,125.25,125.23,0.05836818]
[1743451603076,29.6,125.26,125.23,0.05836818]
[1743451603268,14.03534231,125.25,125.23,0.05836818]
[1743451603473,14.03534231,125.25,125.18,5.0308]
[1743451603674,14.03534231,125.24,125.19,14.03534231]
[1743451603869,29.58,125.23,125.19,14.03534231]
[1743451604074,7.987,125.23,125.2,7.9883]
[1743451604274,29.58,125.25,125.21,14.03534231]
[1743451604573,7.9864,125.24,125.21,22.02294231]
[1743451604875,8.04315832,125.24,125.22,0.05709452]
[1743451605169,7.9867,125.23,125.22,0.05709452]
[1743451606876,7.9867,125.23,125.22,9.452e-05]
[1743451608772,22.02204231,125.23,125.22,9.452e-05]
[1743451609275,7.9908,125.17,125.15,5.1937]
[1743451609471,7.9908,125.17,125.15,19.22904231]
[1743451609678,7.9908,125.17,125.13,2.5001]
[1743451609679,14.03534231,125.18,125.13,24.52814231]
[1743451609877,14.03534231,125.18,125.13,16.53544231]
[1743451610079,39.9425,125.24,125.12,23.18601438]
[1743451610080,43.61534231,125.17,125.12,14.03534231]
[1743451610279,43.61534231,125.17,125.12,22.02884231]
[1743451610476,0.05650895,125.16,125.13,0.05370587]
[1743451611185,14.03534231,125.15,125.13,0.05370587]
[1743451611580,43.61534231,125.14,125.13,0.05370587]
[1743451611782,29.58,125.14,125.13,0.05370587]
[1743451613286,43.61534231,125.14,125.08,16.49254231]
[1743451613689,43.61534231,125.14,125.09,7.9954]
[1743451613888,43.61534231,125.14,125.08,16.49254231]
[1743451614283,43.61534231,125.14,125.09,7.9953]
[1743451614487,0.05267586,125.12,125.1,0.05177821]
[1743451615194,14.08801817,125.12,125.1,0.05177821]
[1743451615389,0.05267586,125.12,125.1,0.05177821]
[1743451615693,0.05267586,125.12,125.1,14.08712052]
[1743451615895,0.05267586,125.12,125.11,7.9944]
[1743451616092,0.05267586,125.12,125.11,14.03534231]
[1743451616293,0.05267586,125.12,125.1,14.08712052]
[1743451616496,0.05267586,125.12,125.1,0.05177821]
[1743451617590,14.03534231,125.11,125.1,0.05177821]
[1743451617793,14.03534231,125.11,125.05,14.03534231]
[1743451617990,14.03534231,125.11,125.06,14.03534231]
[1743451618595,43.63534231,125.12,125.07,14.03534231]
[1743451618792,0.0533587,125.11,125.08,14.09368256]
[1743451619195,0.0533587,125.11,125.09,7.9953]
[1743451620896,0.0533587,125.11,125.08,0.05834025]
[1743451621101,0.0533587,125.11,125.08,14.09368256]
[1743451622499,0.0533587,125.11,125.1,7.995]
[1743451625100,0.0533587,125.11,125.08,0.05834025]
[1743451626604,14.03534231,125.1,125.08,0.05834025]
[1743451627004,0.0533587,125.11,125.08,0.05834025]
[1743451627005,29.6,125.09,125.08,0.05834025]
[1743451627304,29.6533587,125.11,125.08,0.05834025]
[1743451627505,29.6533587,125.11,125.08,8.05434025]
[1743451627705,29.6533587,125.11,125.08,0.05834025]
[1743451628003,29.6533587,125.11,125.08,8.05424025]
[1743451629206,29.6533587,125.11,125.09,7.9955]
[1743451629906,37.6477587,125.11,125.09,7.9955]
[1743451630406,37.6477587,125.11,125.08,8.05434025]
[1743451632509,37.6477587,125.11,125.09,7.9956]
[1743451632904,29.6533587,125.11,125.09,7.9956]
[1743451633611,29.6533587,125.11,125.1,7.995]
[1743451633806,0.0533587,125.11,125.1,22.03034231]
[1743451636904,0.0533587,125.11,125.1,7.995]
[1743451637611,29.6,125.14,125.13,7.9931]
[1743451638709,7.9924,125.14,125.12,8.05232453]
[1743451639306,0.05165962,125.15,125.12,0.05892453]
[1743451639504,29.65165962,125.15,125.12,14.09426684]
[1743451639702,29.65165962,125.15,125.12,0.05892453]
[1743451640111,7.9925,125.14,125.12,8.05232453]
[1743451641010,37.64375962,125.15,125.12,0.05892453]
[1743451641808,37.64375962,125.15,125.13,7.9927]
[1743451642013,7.9925,125.14,125.12,0.05892453]
[1743451644109,29.65165962,125.15,125.12,0.05892453]
[1743451644913,29.6,125.14,125.12,0.05892453]
[1743451645311,7.9931,125.13,125.12,0.05892453]
[1743451646112,0.05165962,125.15,125.12,0.05892453]
[1743451646411,0.05165962,125.15,125.14,14.03534231]
[1743451646809,0.05165962,125.15,125.14,22.02774231]
[1743451647111,0.05165962,125.15,125.14,24.44634231]
[1743451647306,0.05165962,125.15,125.14,16.45394231]
[1743451648013,0.05165962,125.15,125.14,24.44634231]
[1743451648317,7.9915,125.16,125.14,24.44634231]
[1743451648318,7.9896,125.19,125.14,16.45394231]
[1743451648510,7.9896,125.19,125.16,14.03534231]
[1743451648711,29.6,125.2,125.16,22.02624231]
[1743451649316,8.04480693,125.19,125.17,0.06047453]
[1743451649516,8.04480693,125.19,125.17,8.05087453]
[1743451649712,10.87207896,125.24,125.18,14.03534231]
[1743451649906,10.87207896,125.24,125.2,14.03534231]
[1743451650105,163.20821096,125.25,125.21,22.02334231]
[1743451650106,29.58,125.25,125.21,22.02334231]
[1743451650520,7.9864,125.24,125.21,22.02334231]
[1743451650713,43.48831586,125.27,125.23,14.03534231]
[1743451650918,43.48831586,125.27,125.25,14.03534231]
[1743451651120,0.06084102,125.26,125.25,14.03534231]
[1743451651319,0.06084102,125.26,125.25,14.09138198]
[1743451651721,0.06084102,125.26,125.25,0.05603967]
[1743451653122,8.04564102,125.26,125.25,0.05603967]
[1743451654617,8.04564102,125.26,125.25,3.967e-05]
[1743451659119,0.06084102,125.26,125.25,3.967e-05]
[1743451660311,7.9838,125.28,125.25,7.98543967]
[1743451660512,7.9838,125.28,125.25,10.57443967]
[1743451660714,309.49346876,125.34,125.25,24.48250843]
[1743451660912,309.49346876,125.34,125.25,24.48246876]
[1743451661116,29.56,125.33,125.27,21.89346876]
[1743451661316,7.9825,125.3,125.28,0.05532603]
[1743451661519,0.06057163,125.31,125.28,0.05532603]
[1743451661714,7.9829,125.29,125.28,0.05532603]
[1743451662120,29.56,125.3,125.28,0.05532603]
[1743451662822,0.06057163,125.31,125.28,0.05532603]
[1743451663826,8.04247163,125.31,125.28,0.05532603]
[1743451664427,0.06057163,125.31,125.28,0.05532603]
[1743451665427,0.06057163,125.31,125.28,8.03852603]
[1743451665726,0.06057163,125.31,125.29,7.9829]
[1743451666027,0.06057163,125.31,125.29,21.89346876]
[1743451666224,0.06057163,125.31,125.29,26.91496876]
[1743451666425,37.5392,125.35,125.31,7.9813]
[1743451667127,7.9785,125.36,125.29,26.91496876]
[1743451667329,37.5385,125.36,125.3,2.4233]
[1743451667625,29.56,125.36,125.31,0.05075729]
[1743451670926,7.9804,125.33,125.31,0.05075729]
[1743451674232,7.98,125.34,125.31,0.05075729]
[1743451674436,51.45346876,125.36,125.31,0.05075729]
[1743451675632,21.89346876,125.34,125.31,0.05075729]
[1743451675829,29.54,125.33,125.31,0.05075729]
[1743451676327,29.54,125.33,125.25,24.32356876]
[1743451676530,29.54,125.33,125.26,7.9846]
[1743451677033,7.9826,125.3,125.26,7.9846]
[1743451677233,29.54,125.3,125.25,12.5301]
[1743451677632,0.05105426,125.29,125.26,0.05463777]
[1743451677828,0.05105426,125.29,125.26,8.03913777]
[1743451678036,0.05105426,125.29,125.26,0.05463777]
[1743451678436,0.05105426,125.29,125.27,7.9837]
[1743451678925,0.05105426,125.29,125.27,7.9841]
[1743451679535,0.05105426,125.29,125.26,0.05463777]
[1743451680038,0.05105426,125.29,125.28,7.9835]
[1743451687542,29.54,125.32,125.31,7.9816]
[1743451687944,29.54,125.34,125.28,2.2316]
[1743451688240,21.89346876,125.38,125.29,21.89346876]
[1743451688446,29.54,125.37,125.3,2.2668]
[1743451688642,29.54,125.36,125.34,7.9793]
[1743451689138,7.978,125.37,125.34,7.9793]
[1743451689345,37.5184,125.36,125.33,7.9802]
[1743451689645,29.54,125.36,125.3,2.2668]
[1743451689833,29.54,125.36,125.33,0.0545904]
[1743451690543,7.9796,125.35,125.33,0.0545904]
[1743451691940,7.9797,125.34,125.33,0.0545904]
[1743451692340,7.9794,125.35,125.33,0.0545904]
[1743451692545,29.54,125.36,125.33,0.0545904]
[1743451692740,7.9794,125.35,125.33,0.0545904]
[1743451692950,29.54,125.36,125.33,0.0545904]
[1743451693246,51.43346876,125.36,125.33,0.0545904]
[1743451693448,7.9797,125.34,125.33,0.0545904]
[1743451694650,7.9793,125.35,125.33,0.0545904]
[1743451695953,37.5188,125.36,125.33,8.0347904]
[1743451696151,29.54,125.36,125.33,0.0545904]
[1743451696550,37.5187,125.36,125.34,7.9794]
[1743451696951,29.54,125.36,125.33,0.0545904]
[1743451698051,7.9794,125.35,125.33,8.0346904]
[1743451698647,37.5188,125.36,125.33,8.0346904]
[1743451699354,7.9791,125.35,125.33,8.0346904]
[1743451699553,7.9791,125.35,125.33,0.0545904]
[1743451700155,7.9791,125.35,125.33,8.0348904]
[1743451701363,37.5188,125.36,125.33,8.0348904]
[1743451702059,29.54,125.36,125.34,7.9796]
[1743451702561,29.54,125.36,125.33,0.0545904]
[1743451702759,29.54,125.36,125.34,7.9794]
[1743451703060,29.52,125.36,125.33,0.0545904]
[1743451703262,37.4987,125.36,125.33,8.0345904]
[1743451703558,7.9787,125.36,125.33,8.0345904]
[1743451703754,37.4987,125.36,125.33,8.0345904]
[1743451705361,37.4987,125.36,125.34,7.9796]
[1743451705562,37.4985,125.36,125.33,0.0545904]
[1743451705960,7.9793,125.35,125.33,8.0346904]
[1743451706160,29.52,125.36,125.33,8.0346904]
[1743451706667,37.4987,125.36,125.33,8.0346904]
[1743451707069,37.4987,125.36,125.34,7.9795]
[1743451707272,43.51633594,125.39,125.34,13.99633594]
[1743451707671,43.51633594,125.39,125.31,29.52]
[1743451707672,29.52,125.39,125.36,7.9781]
[1743451707972,37.497,125.39,125.35,14.05365804]
[1743451708173,301.35633594,125.4,125.37,7.9775]
[1743451708377,309.33263594,125.4,125.37,7.9775]
[1743451708570,301.35633594,125.4,125.38,7.9768]
[1743451708772,29.52,125.39,125.38,7.9768]
[1743451708972,29.52,125.39,125.38,8.03643275]
[1743451709375,29.52,125.39,125.38,0.05963275]
[1743451709878,29.52,125.39,125.38,8.03673275]
[1743451711478,13.99633594,125.42,125.4,7.9758]
[1743451711686,29.52,125.41,125.4,7.9758]
[1743451711872,29.52,125.41,125.4,0.05621684]
[1743451712479,37.4952,125.41,125.4,0.05621684]
[1743451712781,29.52,125.41,125.4,0.05621684]
[1743451713080,51.49153594,125.41,125.4,0.05621684]
[1743451718783,37.4952,125.41,125.4,0.05621684]
[1743451721084,51.49153594,125.41,125.4,0.05621684]
[1743451721991,37.4952,125.41,125.4,0.05621684]
[1743451722286,51.49153594,125.41,125.4,0.05621684]
[1743451723186,37.4952,125.41,125.4,0.05621684]
[1743451723487,51.49153594,125.41,125.4,0.05621684]
[1743451723984,37.4952,125.41,125.4,0.05621684]
[1743451724376,7.9752,125.41,125.4,0.05621684]
[1743451727083,15.9401,125.5,125.4,14.05255278]
[1743451727283,13.99633594,125.46,125.41,21.97133594]
[1743451727581,7.9738,125.44,125.43,0.05476423]
[1743451728088,13.99633594,125.47,125.43,0.05476423]
[1743451728283,29.5,125.46,125.43,0.05476423]
[1743451728480,13.99633594,125.49,125.45,13.99633594]
[1743451728784,29.5,125.48,125.45,13.99633594]
[1743451728990,7.9719,125.47,125.46,0.05863193]
[1743451729288,29.5,125.49,125.46,0.05863193]
[1743451729484,29.5,125.5,125.47,13.99633594]
[1743451729992,7.9706,125.49,125.47,13.99633594]
[1743451730884,7.9708,125.48,125.47,13.99633594]
[1743451731088,29.5,125.5,125.46,0.05863193]
[1743451731283,43.49633594,125.5,125.46,0.05863193]
[1743451731789,7.9713,125.48,125.46,0.05863193]
[1743451731985,29.5,125.5,125.46,0.05863193]
[1743451732390,7.9714,125.47,125.46,0.05863193]
[1743451735189,37.4714,125.47,125.46,0.05863193]
[1743451736288,37.4714,125.47,125.46,3.193e-05]
[1743451744397,7.9714,125.47,125.46,3.193e-05]
[1743451748707,7.9746,125.42,125.41,4.2503]
[1743451749806,37.4537,125.44,125.41,4.2503]
[1743451750007,0.0563986,125.43,125.41,4.2503]
[1743451750905,21.82513639,125.49,125.41,4.2503]
[1743451751112,29.48,125.48,125.41,4.2503]
[1743451751411,7.9717,125.47,125.43,7.9736]
[1743451752110,7.9717,125.47,125.44,0.05669834]
[1743451752508,37.4511,125.48,125.44,8.02989834]
[1743451753711,37.4511,125.48,125.45,7.9727]
[1743451754403,13.97038311,125.5,125.46,7.9717]
[1743451754611,29.48,125.49,125.46,7.9717]
[1743451754810,29.48,125.49,125.47,0.05136907]
[1743451755315,37.4502,125.49,125.47,0.05136907]
[1743451755913,29.48,125.49,125.47,8.02246907]
[1743451756315,29.48,125.48,125.47,8.02246907]
[1743451758318,300.87038311,125.51,125.49,7.9697]
[1743451758525,29.48,125.5,125.49,7.9697]
[1743451758916,29.48,125.5,125.48,7.9705]
[1743451759225,29.48,125.5,125.47,2.22096907]
[1743451759613,7.9702,125.49,125.47,10.19216907]
[1743451760625,7.9708,125.48,125.47,2.22096907]
[1743451760817,43.45038311,125.5,125.47,2.22096907]
[1743451761325,7.9705,125.49,125.47,2.22096907]
[1743451762327,7.9708,125.48,125.47,2.22096907]
[1743451763127,7.9705,125.49,125.47,2.22096907]
[1743451764826,7.9708,125.48,125.47,2.22096907]
[1743451765426,43.45038311,125.5,125.47,2.22096907]
[1743451765427,29.48,125.5,125.47,10.19236907]
[1743451765634,13.97038311,125.51,125.47,10.19236907]
[1743451765826,7.968,125.53,125.5,7.9694]
[1743451766023,7.968,125.53,125.49,13.97038311]
[1743451766228,43.45038311,125.53,125.5,0.05345554]
[1743451766428,7.9687,125.52,125.5,0.05345554]
[1743451767532,37.4487,125.52,125.5,0.05345554]
[1743451770033,29.48,125.52,125.5,8.02295554]
[1743451770633,37.4486,125.52,125.5,0.05345554]
[1743451771828,7.9689,125.51,125.5,0.05345554]
[1743451776527,375.83900147,125.62,125.5,0.05345554]
[1743451776736,374.4523263,125.62,125.54,13.97038311]
[1743451777038,57.79654625,125.61,125.56,13.97038311]
[1743451777233,29.62,125.6,125.56,13.97038311]
[1743451777436,7.9639,125.59,125.57,0.06031679]
[1743451778032,40.73654078,125.61,125.57,0.06031679]
[1743451778228,10.95654078,125.61,125.58,13.97038311]
[1743451778833,10.95654078,125.61,125.58,16.12568311]
[1743451779033,10.95654078,125.61,125.58,18.35628311]
[1743451779239,4.16454078,125.61,125.6,13.97038311]
[1743451779632,0.76884078,125.61,125.6,13.97038311]
[1743451779836,120.52194866,125.62,125.59,21.76918055]
[1743451780241,29.78,125.65,125.59,21.76918055]
[1743451780440,7.9609,125.64,125.59,29.73278055]
[1743451780740,7.9609,125.64,125.61,0.05440256]
[1743451781136,37.7204,125.65,125.61,0.05440256]
[1743451781638,29.76,125.65,125.61,0.05440256]
[1743451782135,7.9611,125.64,125.61,0.05440256]
[1743451782444,7.9613,125.63,125.61,0.05440256]
[1743451782645,29.76,125.65,125.61,0.05440256]
[1743451783831,7.9618,125.63,125.61,0.05440256]
[1743451784831,286.8,125.68,125.61,0.05440256]
[1743451785034,30.0,125.68,125.61,29.78558311]
[1743451785234,30.0,125.68,125.61,21.82358311]
[1743451785744,30.0,125.68,125.62,7.9619]
[1743451785931,30.0,125.68,125.61,21.76918055]
[1743451786240,7.9598,125.66,125.64,0.05302558]
[1743451786642,7.9589,125.67,125.64,0.05302558]
[1743451788240,7.9589,125.67,125.64,8.01342558]
[1743451789148,7.9594,125.66,125.64,0.05302558]
[1743451789848,7.96,125.65,125.64,0.05302558]
[1743451790945,7.9597,125.66,125.64,0.05302558]
[1743451791251,21.76918055,125.71,125.64,0.05302558]
[1743451791551,7.9587,125.68,125.65,7.9595]
[1743451792051,7.9587,125.68,125.65,8.01388263]
[1743451793545,7.9589,125.67,125.65,8.01388263]
[1743451794251,7.9584,125.68,125.65,8.01388263]
[1743451795152,4.2904,125.72,125.65,0.05438263]
[1743451795648,2.1515,125.72,125.65,21.82356318]
[1743451795848,29.78,125.72,125.65,21.82356318]
[1743451796052,29.78,125.72,125.65,51.58356318]
[1743451796252,37.7359,125.72,125.69,7.9574]
[1743451796456,23.98658055,125.75,125.67,21.76918055]
[1743451796647,29.76,125.74,125.69,0.05942549]
[1743451796844,7.9553,125.73,125.7,7.9565]
[1743451799855,7.9556,125.72,125.69,31.98310604]
[1743451800351,29.78,125.74,125.69,2.25682549]
[1743451800653,29.78,125.74,125.69,0.05942549]
[1743451801057,7.9568,125.7,125.69,0.05942549]
[1743451802251,7.9566,125.71,125.69,0.05942549]
[1743451803255,7.9568,125.7,125.69,0.05942549]
[1743451806154,37.6768,125.7,125.69,0.05942549]
[1743451806859,37.6768,125.7,125.69,2.549e-05]
[1743451810158,7.9568,125.7,125.69,2.549e-05]
[1743451810350,37.7368,125.7,125.69,2.549e-05]
[1743451811759,37.9768,125.7,125.69,2.549e-05]
[1743451812156,37.9568,125.7,125.69,2.549e-05]
[1743451815564,7.9599,125.66,125.63,7.961]
[1743451815766,29.98,125.65,125.63,7.961]
[1743451816564,30.03520256,125.65,125.63,8.01602106]
[1743451817063,30.03520256,125.65,125.64,13.93006265]
[1743451818166,0.05520256,125.65,125.64,21.89066265]
[1743451818361,0.05520256,125.65,125.64,13.93006265]
[1743451818763,0.05520256,125.65,125.63,21.94608371]
[1743451818966,0.05520256,125.65,125.63,8.01602106]
[1743451819265,0.05520256,125.65,125.64,7.9606]
[1743451820059,0.05520256,125.65,125.63,8.01592106]
[1743451820867,0.05520256,125.65,125.64,7.9606]
[1743451825574,0.05520256,125.65,125.63,21.94598371]
[1743451826072,0.05520256,125.65,125.64,7.9606]
[1743451826371,0.05520256,125.65,125.63,13.98508371]
[1743451826572,0.05520256,125.65,125.63,21.94578371]
[1743451829474,8.01520256,125.65,125.63,21.94578371]
[1743451830074,0.05520256,125.65,125.63,21.94578371]
[1743451830772,8.01550256,125.65,125.63,21.94578371]
[1743451830977,8.01550256,125.65,125.63,0.05502106]
[1743451831477,0.05520256,125.65,125.63,13.98508371]
[1743451831676,0.05520256,125.65,125.64,7.9606]
[1743451832665,0.05520256,125.65,125.63,21.94598371]
[1743451833176,8.01520256,125.65,125.63,21.94598371]
[1743451835381,7.9606,125.64,125.63,0.05502106]
[1743451835581,21.89066265,125.64,125.63,0.05502106]
[1743451836881,7.9606,125.64,125.63,0.05502106]
[1743451840885,7.962,125.62,125.59,13.93006265]
[1743451841076,13.93006265,125.6,125.54,4.208]
[1743451841281,29.54,125.59,125.55,13.93006265]
[1743451841478,29.54,125.59,125.56,7.9653]
[1743451841685,29.54,125.59,125.56,13.93006265]
[1743451841880,13.93006265,125.62,125.58,13.93006265]
[1743451842180,0.05216749,125.61,125.6,21.89286265]
[1743451842679,0.05216749,125.61,125.6,7.9628]
[1743451843086,0.05216749,125.61,125.59,21.89356265]
[1743451843282,0.05216749,125.61,125.59,13.93006265]
[1743451844089,0.05216749,125.61,125.59,21.89346265]
[1743451844489,0.05216749,125.61,125.59,13.93006265]
[1743451844988,0.05216749,125.61,125.59,21.89356265]
[1743451845788,0.05216749,125.61,125.59,7.9635]